bitfinex/quotes_SOLUSD_20250216
["timestamp","ask_amount","ask_price","bid_price","bid_amount"]
[1739672304282,0.063,194.15,194.14,16.68732398]
[1739672305797,0.063,194.15,194.14,21.83822398]
[1739672306495,0.063,194.15,194.13,15.91507004]
[1739672306686,0.063,194.15,194.14,15.91507004]
[1739672308090,0.063,194.15,194.14,21.06597004]
[1739672309488,0.063,194.15,194.14,15.91507004]
[1739672310379,0.063,194.15,194.14,34.47781857]
[1739672310579,0.063,194.15,194.14,35.25009717]
[1739672311480,0.063,194.19,194.15,14.41184853]
[1739672311681,0.063,194.19,194.18,15.91507004]
[1739672315995,0.063,194.19,194.17,15.91507004]
[1739672316811,0.063,194.19,194.16,15.91507004]
[1739672317897,0.063,194.19,194.17,15.91507004]
[1739672318483,0.063,194.19,194.18,15.91507004]
[1739672319207,0.063,194.19,194.18,21.06487004]
[1739672321688,0.063,194.19,194.18,15.91507004]
[1739672325405,0.063,194.19,194.18,34.47671857]
[1739672326998,0.063,194.24,194.19,14.41184853]
[1739672327313,0.063,194.24,194.23,34.47541857]
[1739672329001,0.063,194.25,194.23,170.97541857]
[1739672329309,0.063,194.33,194.24,31.09873167]
[1739672329487,0.063,194.33,194.29,15.91507004]
[1739672329993,0.063,194.33,194.29,45.24198861]
[1739672330208,0.063,194.33,194.29,46.0136721]
[1739672330503,0.063,194.33,194.3,14.41184853]
[1739672330690,0.063,194.33,194.32,29.32691857]
[1739672330892,0.063,194.33,194.32,15.91507004]
[1739672337599,0.063,194.33,194.28,15.91507004]
[1739672338900,0.063,194.33,194.27,15.91507004]
[1739672338901,5.2088,194.33,194.27,15.91507004]
[1739672339123,5.2088,194.33,194.21,135.5]
[1739672339124,5.2088,194.33,194.26,15.91507004]
[1739672339321,18.0735,194.33,194.27,15.91507004]
[1739672339500,18.0735,194.33,194.28,15.91507004]
[1739672340820,18.0735,194.33,194.29,15.91507004]
[1739672341036,5.2088,194.33,194.32,15.91507004]
[1739672341342,0.063,194.33,194.32,15.91507004]
[1739672347526,0.063,194.33,194.27,5.1474]
[1739672347527,0.063,194.33,194.29,15.91507004]
[1739672347706,0.063,194.33,194.28,15.91507004]
[1739672348222,1.6484,194.33,194.27,15.91507004]
[1739672348931,1.6484,194.33,194.26,15.91507004]
[1739672349133,5.1461,194.32,194.26,15.91507004]
[1739672350026,5.1461,194.32,194.3,0.03]
[1739672351836,20.0,194.29,194.22,15.91507004]
[1739672352017,20.0,194.29,194.21,15.91507004]
[1739672352533,20.0,194.29,194.2,15.91507004]
[1739672353221,20.0,194.29,194.19,15.94507004]
[1739672353529,1.5854,194.26,194.19,0.03]
[1739672353928,5.148,194.25,194.19,0.03]
[1739672354716,18.018,194.25,194.19,0.03]
[1739672359034,20.0,194.22,194.19,0.03]
[1739672360719,5.149,194.21,194.19,0.03]
[1739672367541,5.1485,194.23,194.19,0.03]
[1739672369546,20.0,194.2,194.19,0.03]
[1739672371152,25.1493,194.2,194.19,0.03]
[1739672371463,5.149,194.21,194.19,0.03]
[1739672372262,21.32394853,194.26,194.19,0.03]
[1739672372263,82.1,194.25,194.19,0.03]
[1739672372442,82.1,194.25,194.2,15.91507004]
[1739672373046,82.1,194.25,194.22,15.91507004]
[1739672373245,82.1,194.29,194.24,15.91507004]
[1739672373448,87.2469,194.29,194.25,15.91507004]
[1739672373634,5.2096,194.3,194.26,15.91507004]
[1739672374454,5.2096,194.3,194.25,15.91507004]
[1739672375455,5.2096,194.3,194.26,15.91507004]
[1739672375750,0.063,194.3,194.26,15.91507004]
[1739672377534,0.063,194.3,194.28,15.91507004]
[1739672377932,0.063,194.3,194.27,15.91507004]
[1739672378342,0.063,194.3,194.26,15.91507004]
[1739672380550,0.063,194.3,194.27,15.91507004]
[1739672381456,0.063,194.3,194.26,15.91507004]
[1739672381960,0.063,194.3,194.25,15.91507004]
[1739672382147,0.063,194.3,194.26,15.91507004]
[1739672385264,0.063,194.3,194.27,15.91507004]
[1739672386545,0.063,194.3,194.28,15.91507004]
[1739672387255,0.063,194.3,194.27,15.91507004]
[1739672388139,0.063,194.3,194.26,15.91507004]
[1739672388360,0.063,194.3,194.25,15.91507004]
[1739672389251,20.063,194.3,194.24,15.91507004]
[1739672389563,0.063,194.3,194.24,15.91507004]
[1739672389740,20.0,194.29,194.21,15.91507004]
[1739672389940,20.0,194.29,194.22,15.91507004]
[1739672390761,5.1472,194.28,194.22,15.91507004]
[1739672390958,20.0,194.29,194.23,15.91507004]
[1739672391266,20.0,194.29,194.24,15.91507004]
[1739672391452,25.1469,194.29,194.24,15.91507004]
[1739672391765,25.1469,194.29,194.23,15.91507004]
[1739672391948,25.1469,194.29,194.21,15.91507004]
[1739672392268,25.1469,194.29,194.22,15.91507004]
[1739672395762,25.1469,194.29,194.23,15.91507004]
[1739672395954,25.1469,194.29,194.24,15.91507004]
[1739672397143,25.1469,194.29,194.23,15.91507004]
[1739672400785,25.1469,194.29,194.22,15.94507004]
[1739672401782,82.1,194.28,194.22,0.03]
[1739672403387,18.016,194.27,194.22,0.03]
[1739672405694,82.1,194.26,194.22,0.03]
[1739672407504,5.148,194.25,194.22,0.03]
[1739672407794,20.0,194.23,194.22,0.03]
[1739672410289,25.1485,194.23,194.22,0.03]
[1739672411569,20.0,194.23,194.22,0.03]
[1739672412481,82.1,194.25,194.22,0.03]
[1739672412689,82.1,194.25,194.22,15.94507004]
[1739672413896,87.248,194.25,194.22,0.03]
[1739672416893,20.0,194.23,194.22,0.03]
[1739672417899,25.1485,194.23,194.22,0.03]
[1739672434706,25.1485,194.23,194.22,0.0001]
[1739672434884,38.56034853,194.23,194.22,0.0001]
[1739672435085,1.6593,194.22,194.19,0.03]
[1739672435291,13.41184853,194.21,194.19,0.03]
[1739672435510,5.1493,194.2,194.19,0.03]
[1739672435910,20.0,194.17,194.15,0.03]
[1739672437707,5.1503,194.16,194.15,0.03]
[1739672442903,20.0,194.16,194.15,0.03]
[1739672446119,5.1503,194.16,194.15,0.03]
[1739672452222,5.1503,194.16,194.1,0.03]
[1739672452432,20.0,194.15,194.1,0.03]
[1739672453526,5.1509,194.14,194.1,0.03]
[1739672456106,5.1514,194.12,194.1,0.03]
[1739672467936,82.1,194.11,194.1,0.03]
[1739672468340,87.2517,194.11,194.1,0.03]
[1739672474054,5.1517,194.11,194.1,0.03]
[1739672475438,20.0,194.11,194.1,0.03]
[1739672477858,25.1517,194.11,194.1,0.03]
[1739672483446,20.0,194.11,194.1,0.03]
[1739672483751,5.1509,194.14,194.1,0.03]
[1739672483926,82.1,194.13,194.1,0.03]
[1739672484749,87.2514,194.13,194.1,0.03]
[1739672489627,82.1,194.13,194.1,0.03]
[1739672489835,82.1,194.13,194.1,10.21509818]
[1739672490239,0.063,194.15,194.12,10.18509818]
[1739672490449,0.063,194.15,194.14,10.18509818]
[1739672492254,0.063,194.15,194.14,15.33599818]
[1739672492657,0.063,194.15,194.14,16.95919818]
[1739672498559,0.063,194.15,194.14,30.37104671]
[1739672500459,0.063,194.15,194.14,16.95919818]
[1739672502547,0.063,194.15,194.14,16.98919818]
[1739672508173,0.063,194.15,194.14,10.21509818]
[1739672509872,0.063,194.15,194.14,0.03]
[1739672511266,0.063,194.15,194.14,10.21509818]
[1739672512273,0.063,194.15,194.14,15.36599818]
[1739672515673,0.063,194.15,194.14,28.77784671]
[1739672519274,0.063,194.15,194.14,15.36599818]
[1739672520171,0.063,194.15,194.14,28.77784671]
[1739672525663,0.063,194.15,194.14,15.36599818]
[1739672531786,0.063,194.15,194.14,10.21509818]
[1739672537494,0.063,194.15,194.14,28.77784671]
[1739672539200,5.1474,194.27,194.17,1.0]
[1739672539380,12.9767,194.28,194.24,10.18509818]
[1739672539582,6.739,194.28,194.24,10.18509818]
[1739672540298,1.5918,194.28,194.26,10.18509818]
[1739672540679,5.2096,194.3,194.26,10.18509818]
[1739672541307,20.063,194.3,194.25,10.18509818]
[1739672541476,0.063,194.3,194.25,10.18509818]
[1739672542105,0.063,194.3,194.27,10.18509818]
[1739672542280,0.063,194.3,194.26,10.18509818]
[1739672543190,0.063,194.3,194.27,10.18509818]
[1739672547693,0.063,194.3,194.26,10.18509818]
[1739672550598,0.063,194.3,194.29,10.18509818]
[1739672550784,0.063,194.3,194.28,10.18509818]
[1739672550986,0.063,194.3,194.27,10.18509818]
[1739672553104,0.063,194.3,194.29,10.18509818]
[1739672563614,0.063,194.3,194.28,10.18509818]
[1739672568509,0.063,194.3,194.29,10.18509818]
[1739672571116,0.063,194.3,194.29,10.18509818]
[1739672571818,0.063,194.3,194.28,10.18509818]
[1739672572117,0.063,194.3,194.27,10.18509818]
[1739672572910,0.063,194.3,194.26,10.18509818]
[1739672573306,0.063,194.3,194.23,10.18509818]
[1739672574007,0.063,194.3,194.24,10.18509818]
[1739672576317,0.063,194.3,194.25,10.18509818]
[1739672576622,0.063,194.3,194.24,10.18509818]
[1739672577720,1.6418,194.3,194.23,10.18509818]
[1739672579612,1.6418,194.3,194.24,10.18509818]
[1739672579814,5.1469,194.29,194.23,10.18509818]
[1739672580621,5.1469,194.29,194.26,10.18509818]
[1739672581403,5.1469,194.29,194.22,13.41184853]
[1739672581404,0.063,194.3,194.27,10.18509818]
[1739672583521,0.063,194.3,194.26,10.18509818]
[1739672584421,0.063,194.3,194.25,10.18509818]
[1739672584623,0.063,194.3,194.24,10.18509818]
[1739672585830,0.063,194.3,194.23,10.18509818]
[1739672586531,0.063,194.3,194.22,10.18509818]
[1739672586831,0.063,194.3,194.23,10.18509818]
[1739672587007,0.063,194.3,194.24,10.18509818]
[1739672587332,0.063,194.3,194.26,10.18509818]
[1739672587628,0.063,194.3,194.27,10.18509818]
[1739672587828,0.063,194.3,194.26,10.18509818]
[1739672589721,0.063,194.3,194.25,10.18509818]
[1739672590227,0.063,194.3,194.24,10.18509818]
[1739672593145,0.063,194.3,194.25,10.18509818]
[1739672610934,0.063,194.3,194.23,10.18509818]
[1739672611134,82.163,194.3,194.21,10.18509818]
[1739672611646,20.0,194.27,194.19,10.18509818]
[1739672611843,20.0,194.26,194.18,10.18509818]
[1739672612744,5.148,194.25,194.18,10.18509818]
[1739672613346,5.148,194.25,194.17,81.54]
[1739672613537,18.018,194.25,194.17,81.54]
[1739672613738,5.148,194.25,194.17,91.72509818]
[1739672613937,5.148,194.25,194.18,10.18509818]
[1739672614958,5.148,194.25,194.19,10.18509818]
[1739672615362,5.148,194.25,194.2,10.18509818]
[1739672615547,5.148,194.25,194.21,10.18509818]
[1739672615863,6.6586,194.28,194.23,10.18509818]
[1739672616163,5.1472,194.28,194.24,10.18509818]
[1739672616949,5.2096,194.3,194.24,10.18509818]
[1739672618642,0.063,194.28,194.24,10.18509818]
[1739672623970,0.063,194.28,194.23,10.18509818]
[1739672625153,0.063,194.28,194.22,10.18509818]
[1739672625549,20.0,194.27,194.22,10.18509818]
[1739672625756,20.0,194.27,194.2,10.18509818]
[1739672626863,5.1477,194.26,194.2,10.18509818]
[1739672627067,5.1477,194.26,194.19,15.33459818]
[1739672627654,5.1477,194.26,194.19,10.18509818]
[1739672627869,88.9107,194.26,194.17,10.18509818]
[1739672629171,88.9107,194.26,194.2,10.18509818]
[1739672629666,82.1,194.26,194.21,10.18509818]
[1739672629870,82.1,194.26,194.22,10.18509818]
[1739672631281,25.1475,194.27,194.22,10.18509818]
[1739672631583,0.03,194.26,194.22,10.18509818]
[1739672632371,0.03,194.26,194.23,10.18509818]
[1739672636980,0.03,194.26,194.22,10.18509818]
[1739672637987,0.03,194.26,194.22,15.33379818]
[1739672638276,0.03,194.26,194.23,10.18509818]
[1739672640486,0.03,194.26,194.21,10.18509818]
[1739672641687,20.03,194.26,194.2,10.18509818]
[1739672641889,20.03,194.26,194.19,10.18509818]
[1739672642578,5.148,194.25,194.2,10.18509818]
[1739672643475,0.03,194.26,194.22,10.18509818]
[1739672643784,0.03,194.26,194.23,10.18509818]
[1739672646179,0.03,194.26,194.24,10.18509818]
[1739672647688,0.03,194.26,194.23,10.18509818]
[1739672648080,0.03,194.26,194.22,10.18509818]
[1739672650551,0.03,194.26,194.23,10.18509818]
[1739672650706,0.03,194.26,194.24,10.18509818]
[1739672653506,0.03,194.26,194.25,10.18509818]
[1739672657709,0.03,194.26,194.24,10.18509818]
[1739672662510,0.03,194.26,194.23,10.18509818]
[1739672664810,0.03,194.26,194.22,10.18509818]
[1739672664998,0.03,194.26,194.21,10.18509818]
[1739672665187,0.03,194.26,194.2,10.18509818]
[1739672666505,5.1777,194.26,194.2,10.18509818]
[1739672669408,5.1777,194.26,194.21,10.18509818]
[1739672670721,5.1777,194.26,194.24,10.18509818]
[1739672670722,0.03,194.26,194.24,10.18509818]
[1739672671320,0.03,194.26,194.23,10.18509818]
[1739672673922,0.03,194.26,194.24,10.18509818]
[1739672678103,0.03,194.26,194.25,10.18509818]
[1739672685242,0.03,194.26,194.25,28.74494671]
[1739672686411,0.03,194.26,194.25,10.18509818]
[1739672688420,0.03,194.26,194.24,10.18509818]
[1739672688627,0.03,194.26,194.22,10.18509818]
[1739672688928,0.03,194.26,194.21,10.18509818]
[1739672691346,0.03,194.26,194.22,10.18509818]
[1739672694419,0.03,194.26,194.23,10.18509818]
[1739672695742,0.03,194.26,194.24,10.18509818]
[1739672698320,0.03,194.26,194.24,15.33329818]
[1739672698633,0.03,194.26,194.25,10.18509818]
[1739672700250,0.03,194.26,194.25,15.33309818]
[1739672700464,0.03,194.26,194.25,10.18509818]
[1739672709256,0.03,194.26,194.25,15.33309818]
[1739672711059,0.03,194.26,194.25,10.18509818]
[1739672713231,0.03,194.26,194.25,15.33309818]
[1739672715039,0.03,194.26,194.25,28.74494671]
[1739672719874,0.03,194.26,194.22,10.18509818]
[1739672720233,0.03,194.26,194.24,10.18509818]
[1739672722058,0.03,194.26,194.22,10.18509818]
[1739672724371,0.03,194.26,194.21,10.18509818]
[1739672727639,20.03,194.26,194.2,10.18509818]
[1739672728960,25.1779,194.26,194.21,10.18509818]
[1739672733350,25.1779,194.26,194.22,10.18509818]
[1739672734073,25.1779,194.26,194.21,10.18509818]
[1739672735842,25.1779,194.26,194.2,10.18509818]
[1739672737357,25.1779,194.26,194.2,15.33429818]
[1739672737674,25.1779,194.26,194.21,10.18509818]
[1739672738147,5.1779,194.26,194.21,10.18509818]
[1739672740971,5.1779,194.26,194.2,10.18509818]
[1739672741543,5.1779,194.26,194.19,10.18509818]
[1739672743780,82.1,194.25,194.16,10.18509818]
[1739672744769,5.1482,194.24,194.16,10.18509818]
[1739672745269,5.1482,194.24,194.15,0.03]
[1739672745473,82.1,194.23,194.16,10.18509818]
[1739672745880,83.7337,194.23,194.15,10.21509818]
[1739672746086,5.1488,194.22,194.15,0.03]
[1739672746289,82.1,194.21,194.15,0.03]
[1739672748458,5.1493,194.2,194.15,0.03]
[1739672754769,82.1,194.21,194.18,10.18509818]
[1739672755486,82.1,194.21,194.15,0.03]
[1739672755785,82.1,194.21,194.17,10.18509818]
[1739672757779,87.2491,194.21,194.17,10.18509818]
[1739672757982,87.2491,194.21,194.15,0.03]
[1739672760677,87.2791,194.21,194.15,0.03]
[1739672763783,87.2791,194.21,194.15,10.21509818]
[1739672764082,87.2791,194.21,194.16,10.18509818]
[1739672764877,87.2791,194.21,194.15,10.21509818]
[1739672767088,87.2791,194.21,194.15,0.03]
[1739672772670,87.2791,194.21,194.15,10.21509818]
[1739672773285,82.13,194.21,194.17,10.18509818]
[1739672773483,82.13,194.21,194.18,10.18509818]
[1739672773886,82.13,194.21,194.17,10.18509818]
[1739672774188,0.03,194.21,194.2,10.18509818]
[1739672777999,0.03,194.21,194.19,10.18509818]
[1739672778298,0.03,194.21,194.17,10.18509818]
[1739672779991,0.03,194.21,194.16,10.18509818]
[1739672780200,0.03,194.21,194.15,0.03]
[1739672781298,0.03,194.21,194.15,10.21509818]
[1739672781498,0.03,194.21,194.16,10.18509818]
[1739672783479,0.03,194.21,194.17,10.18509818]
[1739672783974,0.03,194.21,194.19,10.18509818]
[1739672784473,0.03,194.21,194.18,10.18509818]
[1739672785700,0.03,194.21,194.19,10.18509818]
[1739672786801,0.03,194.21,194.2,10.18509818]
[1739672788006,0.03,194.21,194.19,10.18509818]
[1739672788183,0.03,194.21,194.18,10.18509818]
[1739672788511,0.03,194.21,194.17,10.18509818]
[1739672789898,0.03,194.21,194.16,10.24809818]
[1739672794880,0.03,194.21,194.17,10.18509818]
[1739672796307,5.179,194.21,194.17,10.18509818]
[1739672797989,0.03,194.21,194.19,10.18509818]
[1739672802518,0.03,194.21,194.18,10.18509818]
[1739672808489,0.03,194.21,194.17,10.18509818]
[1739672808694,0.03,194.21,194.16,10.24809818]
[1739672811519,0.03,194.21,194.18,10.18509818]
[1739672814427,0.03,194.21,194.16,0.063]
[1739672814725,0.03,194.21,194.18,10.18509818]
[1739672815732,0.03,194.21,194.2,10.18509818]
[1739672818221,0.03,194.21,194.2,15.33439818]
[1739672818623,0.03,194.21,194.2,10.18509818]
[1739672820122,0.03,194.21,194.2,15.33439818]
[1739672820625,0.03,194.21,194.2,10.18509818]
[1739672821321,0.03,194.21,194.2,15.33439818]
[1739672822326,0.03,194.21,194.2,56.0747909]
[1739672823217,0.03,194.21,194.2,15.33439818]
[1739672823603,0.03,194.21,194.2,28.74624671]
[1739672828310,0.03,194.21,194.2,28.74624671]
[1739672830532,0.03,194.21,194.2,69.48663943]
[1739672834638,0.03,194.21,194.2,28.74624671]
[1739672842063,0.03,194.21,194.2,10.18509818]
[1739672844134,0.03,194.21,194.19,10.18509818]
[1739672844336,0.03,194.21,194.18,10.24809818]
[1739672844536,0.03,194.21,194.18,0.063]
[1739672846734,0.03,194.21,194.18,10.24809818]
[1739672846941,0.03,194.21,194.19,10.18509818]
[1739672847134,0.03,194.21,194.2,10.18509818]
[1739672847946,0.03,194.21,194.2,28.74624671]
[1739672848154,0.03,194.21,194.2,69.48663943]
[1739672851383,0.03,194.21,194.2,28.74624671]
[1739672852461,0.03,194.21,194.2,10.18509818]
[1739672856182,0.03,194.21,194.2,15.33439818]
[1739672856669,0.03,194.21,194.2,10.18509818]
[1739672859690,0.03,194.21,194.19,10.18509818]
[1739672869982,0.03,194.21,194.18,0.063]
[1739672879603,0.03,194.21,194.18,10.24809818]
[1739672881683,0.03,194.21,194.18,0.063]
[1739672882199,0.03,194.21,194.18,10.24809818]
[1739672884515,0.03,194.21,194.18,0.063]
[1739672885303,0.03,194.21,194.18,10.24809818]
[1739672888911,0.03,194.21,194.18,0.063]
[1739672892800,82.1,194.2,194.18,0.063]
[1739672893719,5.1495,194.19,194.18,0.063]
[1739672897013,87.2493,194.2,194.18,0.063]
[1739672898793,82.1,194.19,194.18,0.063]
[1739672900744,82.1,194.19,194.18,10.24809818]
[1739672903024,0.03,194.21,194.18,10.24809818]
[1739672903201,0.03,194.21,194.19,10.18509818]
[1739672904811,0.03,194.21,194.18,10.24809818]
[1739672904995,0.03,194.21,194.18,0.063]
[1739672913616,82.1,194.2,194.18,0.063]
[1739672914622,5.1495,194.19,194.18,0.063]
[1739672919530,87.2495,194.19,194.18,0.063]
[1739672928617,88.835,194.19,194.18,0.063]
[1739672929020,6.735,194.19,194.18,0.063]
[1739672929421,83.1,194.18,194.16,0.063]
[1739672929622,82.1,194.17,194.16,0.063]
[1739672929913,87.2501,194.17,194.16,0.063]
[1739672930754,97.09734853,194.16,194.15,0.03]
[1739672930921,105.49794853,194.16,194.14,0.03]
[1739672931126,15.41184853,194.15,194.14,0.03]
[1739672931638,20.0,194.11,194.1,0.03]
[1739672931816,26.7372,194.11,194.1,0.03]
[1739672932562,87.2506,194.15,194.1,0.03]
[1739672932736,82.1,194.14,194.1,0.03]
[1739672936443,82.1,194.14,194.11,10.18509818]
[1739672936643,82.1,194.14,194.12,10.18509818]
[1739672937042,82.1,194.14,194.13,10.18509818]
[1739672939454,82.1,194.14,194.12,15.33649818]
[1739672940571,82.13,194.19,194.12,15.33649818]
[1739672941752,82.1,194.18,194.13,10.18509818]
[1739672945578,82.1,194.18,194.14,5.1509]
[1739672946683,82.13,194.18,194.14,5.1509]
[1739672947381,82.13,194.18,194.13,0.063]
[1739672948781,87.2799,194.18,194.13,0.063]
[1739672952256,82.1,194.17,194.13,0.063]
[1739672954886,82.1,194.16,194.13,0.063]
[1739672956562,5.1506,194.15,194.13,0.063]
[1739672956892,82.1,194.14,194.13,0.063]
[1739672959189,82.1,194.14,194.13,10.24809818]
[1739672959493,82.1,194.14,194.13,0.063]
[1739672959701,82.13,194.14,194.13,0.063]
[1739672961174,0.03,194.14,194.13,0.063]
[1739672968267,0.03,194.14,194.07,10.18509818]
[1739672969500,0.03,194.14,194.07,15.33759818]
[1739672969716,0.03,194.14,194.08,10.18509818]
[1739672970217,0.03,194.14,194.09,10.18509818]
[1739672970717,0.03,194.14,194.08,10.18509818]
[1739672971515,0.03,194.14,194.08,15.33749818]
[1739672971913,0.03,194.14,194.09,10.18509818]
[1739672973619,0.03,194.14,194.09,15.33709818]
[1739672974596,0.03,194.14,194.09,5.152]
[1739672975843,0.03,194.14,194.09,10.18509818]
[1739672976801,0.03,194.14,194.09,15.33709818]
[1739672984243,0.03,194.14,194.09,10.18509818]
[1739672984446,0.03,194.14,194.08,5.1524]
[1739672985249,0.03,194.14,194.09,10.18509818]
[1739672986656,0.03,194.14,194.1,5.1519]
[1739672988845,0.03,194.14,194.11,10.18509818]
[1739672989759,0.03,194.14,194.1,15.33699818]
[1739672993967,0.03,194.14,194.11,10.18509818]
[1739672995887,0.03,194.14,194.11,15.33669818]
[1739673004049,0.03,194.14,194.11,10.18509818]
[1739673004375,0.03,194.14,194.11,15.33669818]
[1739673005646,0.03,194.14,194.12,10.18509818]
[1739673006071,0.03,194.14,194.09,5.1522]
[1739673006072,0.03,194.14,194.13,10.18509818]
[1739673006645,0.03,194.14,194.12,10.18509818]
[1739673006850,0.03,194.14,194.11,10.18509818]
[1739673007262,0.03,194.14,194.1,10.18509818]
[1739673008269,0.03,194.14,194.1,15.33699818]
[1739673008459,0.03,194.14,194.11,10.18509818]
[1739673008661,0.03,194.14,194.13,10.18509818]
[1739673009070,0.03,194.14,194.13,23.59694671]
[1739673010283,0.03,194.14,194.13,28.74804671]
[1739673013581,0.03,194.14,194.13,15.33619818]
[1739673014184,0.03,194.14,194.08,82.9403]
[1739673014372,0.03,194.14,194.1,10.18509818]
[1739673016984,0.03,194.14,194.1,15.33699818]
[1739673020686,0.03,194.14,194.11,10.18509818]
[1739673021184,0.03,194.14,194.1,10.18509818]
[1739673022289,0.03,194.14,194.1,15.33699818]
[1739673022591,0.03,194.14,194.11,10.18509818]
[1739673023681,0.03,194.14,194.1,15.33699818]
[1739673023886,0.03,194.14,194.09,15.33719818]
[1739673025495,0.03,194.14,194.1,15.33679818]
[1739673027661,0.03,194.14,194.13,10.18509818]
[1739673029168,0.03,194.14,194.13,15.33619818]
[1739673030174,0.03,194.14,194.13,28.74804671]
[1739673032997,0.03,194.18,194.14,13.41184853]
[1739673033205,0.03,194.18,194.17,43.59694671]
[1739673034498,0.03,194.18,194.17,49.51923858]
[1739673034692,0.03,194.21,194.2,20.0]
[1739673034873,0.03,194.21,194.2,43.59694671]
[1739673036002,0.03,194.21,194.19,10.18509818]
[1739673036303,0.03,194.21,194.16,10.18509818]
[1739673036500,0.03,194.21,194.15,10.18509818]
[1739673036678,0.03,194.21,194.13,10.18509818]
[1739673036884,0.03,194.21,194.13,13.41184853]
[1739673037691,20.03,194.21,194.11,10.18509818]
[1739673037990,6.0731,194.2,194.08,18.2851171]
[1739673038192,1.5063,194.19,194.08,18.2851171]
[1739673038804,5.1498,194.18,194.08,18.2851171]
[1739673038998,5.1498,194.18,194.09,10.18509818]
[1739673040921,5.1498,194.18,194.09,15.33719818]
[1739673041102,5.1498,194.18,194.1,10.18509818]
[1739673043014,5.1798,194.18,194.1,10.18509818]
[1739673045512,5.1798,194.18,194.09,10.24809818]
[1739673051010,5.1798,194.18,194.09,15.40019818]
[1739673052518,5.1798,194.18,194.1,10.18509818]
[1739673053111,5.1798,194.18,194.1,15.33699818]
[1739673053286,82.1,194.17,194.1,15.33699818]
[1739673053491,82.1,194.16,194.1,15.33699818]
[1739673060424,87.2505,194.16,194.1,10.18509818]
[1739673060720,87.2505,194.16,194.09,0.063]
[1739673062109,87.2505,194.16,194.09,5.2151]
[1739673062417,87.2505,194.16,194.09,0.063]
[1739673063310,82.1,194.15,194.09,0.063]
[1739673065304,1.6305,194.13,194.09,0.063]
[1739673065622,82.1,194.12,194.09,0.063]
[1739673071234,82.1,194.11,194.09,0.063]
[1739673071529,82.1,194.11,194.09,10.24809818]
[1739673072431,82.1,194.16,194.1,10.18509818]
[1739673072736,82.1,194.16,194.11,5.1517]
[1739673073930,82.1,194.15,194.11,5.1517]
[1739673078132,82.1,194.14,194.09,0.063]
[1739673078326,82.1,194.14,194.1,0.063]
[1739673078838,87.251,194.14,194.1,0.063]
[1739673079044,82.1,194.13,194.1,0.063]
[1739673081118,82.1,194.13,194.1,10.24809818]
[1739673081524,82.1,194.13,194.11,10.18509818]
[1739673081728,82.1,194.13,194.12,10.18509818]
[1739673082047,82.1,194.13,194.12,15.33649818]
[1739673082665,82.1,194.17,194.12,15.33649818]
[1739673084273,82.1,194.17,194.13,15.33599818]
[1739673086759,82.1,194.17,194.15,10.18509818]
[1739673087446,0.03,194.18,194.16,10.18509818]
[1739673087629,0.03,194.18,194.17,10.18509818]
[1739673089053,0.03,194.18,194.17,5.1501]
[1739673093853,0.03,194.18,194.17,15.33519818]
[1739673094860,0.03,194.18,194.16,10.18509818]
[1739673095850,0.03,194.18,194.16,15.33529818]
[1739673097738,0.03,194.18,194.17,10.18509818]